bitfinex/quotes_SOLUSD_20250922
["timestamp","ask_amount","ask_price","bid_price","bid_amount"]
[1758528671234,3.68325996,223.1,223.0,80.4]
[1758528671412,0.7,223.08,223.0,81.12]
[1758528671610,0.7,223.08,223.0,116.52]
[1758528672431,0.7,223.08,223.0,115.8]
[1758528672634,4.36981738,223.1,223.01,0.67]
[1758528673526,3.65981738,223.1,223.01,0.67]
[1758528673730,0.71,223.13,223.01,0.67]
[1758528674037,0.71,223.12,223.01,0.67]
[1758528674344,0.71,223.12,223.01,36.07]
[1758528674513,0.71,223.11,223.01,0.67]
[1758528674713,0.71,223.11,223.01,36.07]
[1758528674932,0.71,223.1,223.01,36.07]
[1758528675232,3.63153788,223.12,223.02,0.67]
[1758528675433,0.71,223.09,223.02,0.67]
[1758528675640,0.71,223.09,223.0,36.07]
[1758528676020,0.71,223.09,223.01,0.67]
[1758528677212,0.71,223.09,223.0,35.4]
[1758528677411,0.71,223.08,222.99,35.38]
[1758528677617,0.71,223.07,222.98,0.67]
[1758528677864,0.71,223.07,222.98,36.05]
[1758528678141,0.71,223.06,222.98,36.05]
[1758528678339,2.98604774,223.13,222.98,0.67]
[1758528678340,0.71,223.05,222.98,0.67]
[1758528678516,0.71,223.05,222.96,35.38]
[1758528678718,0.71,223.04,222.96,35.38]
[1758528678913,0.71,223.03,222.93,0.67]
[1758528679136,0.71,223.03,222.93,56.05]
[1758528679337,0.71,223.03,222.94,0.67]
[1758528681530,0.71,223.03,222.9,0.67]
[1758528681731,0.71,223.03,222.91,35.38]
[1758528681956,0.71,223.02,222.91,35.38]
[1758528682137,0.71,223.01,222.91,0.67]
[1758528683729,0.71,223.06,222.93,20.0]
[1758528683929,0.71,223.06,222.94,0.67]
[1758528684630,2.98604774,223.11,222.94,0.67]
[1758528684835,0.71,223.09,222.97,20.0]
[1758528685053,0.71,223.09,222.98,0.67]
[1758528685256,0.71,223.1,222.98,0.67]
[1758528686351,0.71,223.1,222.98,36.05]
[1758528686560,0.71,223.09,222.99,0.67]
[1758528688158,13.59559401,223.08,222.9,0.72]
[1758528688343,3.69604774,223.07,222.9,0.72]
[1758528688951,13.59559401,223.06,222.9,0.72]
[1758528689150,13.59559401,223.06,222.8,4.48832513]
[1758528689151,13.59559401,223.04,222.85,0.72]
[1758528689467,13.59559401,223.04,222.67,13.15368001]
[1758528689468,13.59559401,223.02,222.77,7.18]
[1758528689637,13.59559401,223.0,222.79,0.82]
[1758528689836,13.59559401,222.98,222.79,0.82]
[1758528690055,13.49559401,222.96,222.79,0.72]
[1758528690240,33.51604774,222.95,222.79,0.72]
[1758528690431,31.26604774,222.94,222.79,0.72]
[1758528690638,2.98604774,222.93,222.79,0.72]
[1758528690857,0.71,222.92,222.79,0.72]
[1758528693244,2.34593051,222.91,222.79,0.72]
[1758528693449,0.71,222.9,222.79,0.72]
[1758528697169,31.91,222.9,222.79,0.72]
[1758528697388,31.2,222.88,222.79,0.72]
[1758528697675,2.98604774,222.87,222.75,0.72]
[1758528697842,0.71,222.86,222.75,0.72]
[1758528700143,13.59559401,222.85,222.7,22.11366196]
[1758528700348,31.2,222.81,222.71,0.72]
[1758528700548,31.2,222.81,222.71,20.72]
[1758528700761,31.2,222.81,222.72,0.72]
[1758528700962,0.71,222.84,222.72,0.72]
[1758528701571,3.69585132,222.84,222.72,0.72]
[1758528701748,0.71,222.84,222.72,0.72]
[1758528704551,31.91,222.84,222.72,0.72]
[1758528704758,2.98585132,222.83,222.72,0.72]
[1758528705372,0.71,222.82,222.72,0.72]
[1758528707566,4.33945674,222.82,222.72,0.72]
[1758528710379,4.33945674,222.82,222.72,20.72]
[1758528710571,3.62945674,222.82,222.73,0.72]
[1758528710771,31.91,222.83,222.73,81.32]
[1758528710988,0.71,222.83,222.74,0.72]
[1758528711788,4.40544307,222.83,222.74,0.72]
[1758528716183,4.40544307,222.83,222.73,80.6]
[1758528716386,0.71,222.82,222.73,80.6]
[1758528716680,0.71,222.81,222.72,0.72]
[1758528717392,0.71,222.81,222.72,20.72]
[1758528717589,0.71,222.81,222.72,20.0]
[1758528717788,0.71,222.81,222.73,0.7]
[1758528718789,4.19375041,222.83,222.73,0.7]
[1758528718988,35.39375041,222.83,222.73,0.7]
[1758528719672,4.19375041,222.83,222.73,0.7]
[1758528720497,7.1696916,222.83,222.72,20.0]
[1758528720678,4.19375041,222.83,222.74,0.7]
[1758528721777,4.19375041,222.83,222.74,101.3]
[1758528721778,3.53375041,222.83,222.74,101.3]
[1758528721976,0.66,222.86,222.74,101.3]
[1758528721977,0.66,222.86,222.75,0.7]
[1758528722180,0.66,222.86,222.75,116.68]
[1758528722372,4.30155485,222.86,222.76,0.7]
[1758528722576,0.66,222.86,222.76,0.7]
[1758528723391,3.62496955,222.86,222.76,0.7]
[1758528723603,3.00593051,222.91,222.79,20.0]
[1758528723775,31.2,222.9,222.8,0.7]
[1758528724498,3.63969281,222.89,222.76,20.0]
[1758528724790,0.66,222.88,222.75,0.7]
[1758528725292,31.2,222.86,222.75,0.7]
[1758528725491,34.83969281,222.85,222.75,0.7]
[1758528725681,31.86,222.85,222.75,0.7]
[1758528728495,31.86,222.85,222.76,20.0]
[1758528728674,0.66,222.84,222.76,20.0]
[1758528728869,0.66,222.84,222.75,0.7]
[1758528729074,0.66,222.83,222.75,0.7]
[1758528729997,0.66,222.83,222.76,20.0]
[1758528730193,0.66,222.83,222.75,0.7]
[1758528731182,0.66,222.83,222.76,20.0]
[1758528731399,0.66,222.83,222.75,0.7]
[1758528732195,0.66,222.83,222.76,20.0]
[1758528732383,0.66,222.83,222.76,0.71]
[1758528733397,3.6467556,222.83,222.72,35.38]
[1758528733574,31.2,222.85,222.72,35.38]
[1758528733575,3.7067556,222.82,222.72,0.71]
[1758528733769,0.72,222.82,222.72,0.71]
[1758528733985,2.9867556,222.81,222.72,0.71]
[1758528734184,3.7067556,222.8,222.72,0.71]
[1758528734499,2.9867556,222.79,222.72,0.71]
[1758528734700,2.9867556,222.78,222.72,0.71]
[1758528735002,2.9867556,222.79,222.72,0.71]
[1758528735187,2.9867556,222.78,222.72,0.71]
[1758528735393,2.9867556,222.79,222.72,0.71]
[1758528735603,31.2,222.76,222.72,0.71]
[1758528735896,2.9867556,222.75,222.73,0.71]
[1758528736098,2.9867556,222.79,222.73,0.71]
[1758528736484,2.9867556,222.82,222.74,20.0]
[1758528736686,2.9867556,222.81,222.75,0.71]
[1758528736897,2.9867556,222.8,222.75,0.71]
[1758528737094,0.72,222.8,222.75,0.71]
[1758528737297,3.7067556,222.8,222.75,0.71]
[1758528737482,0.72,222.8,222.75,0.71]
[1758528738181,3.7067556,222.8,222.75,0.71]
[1758528738376,0.72,222.8,222.75,0.71]
[1758528738582,3.7067556,222.79,222.73,115.98]
[1758528738787,0.72,222.79,222.73,115.98]
[1758528738998,2.9867556,222.78,222.73,80.6]
[1758528739195,3.7067556,222.78,222.73,80.6]
[1758528739399,0.72,222.78,222.73,80.6]
[1758528739986,2.9867556,222.78,222.74,0.71]
[1758528740304,2.9867556,222.79,222.74,0.71]
[1758528740502,2.9867556,222.79,222.75,0.71]
[1758528740694,31.2,222.81,222.75,0.71]
[1758528740892,2.9867556,222.8,222.75,0.71]
[1758528741301,2.9867556,222.8,222.76,0.71]
[1758528741779,2.9867556,222.8,222.73,20.0]
[1758528741983,2.9867556,222.8,222.74,0.71]
[1758528742179,2.9867556,222.79,222.74,0.71]
[1758528742384,31.2,222.81,222.74,0.71]
[1758528742591,2.9867556,222.8,222.74,36.07]
[1758528742785,2.9867556,222.8,222.79,20.0]
[1758528743001,2.9867556,222.87,222.79,20.71]
[1758528743205,2.9867556,222.88,222.81,20.0]
[1758528743395,2.9867556,222.87,222.73,20.0]
[1758528743584,3.7067556,222.86,222.75,20.71]
[1758528743786,31.2,222.84,222.75,20.71]
[1758528743998,2.9867556,222.83,222.75,20.71]
[1758528744198,7.28553717,222.89,222.75,20.71]
[1758528744199,0.12267667,222.93,222.82,2.02928409]
[1758528744397,0.1,223.19,222.97,20.0]
[1758528744398,5.00011408,223.11,222.97,20.0]
[1758528744600,2.3471785,223.18,223.03,20.0]
[1758528745292,27.1871785,223.18,223.03,20.0]
[1758528745487,27.1871785,223.18,223.04,20.0]
[1758528745796,27.1871785,223.18,223.06,20.0]
[1758528746195,0.72,223.17,223.06,20.0]
[1758528746405,0.72,223.16,223.06,20.0]
[1758528746597,0.72,223.15,223.06,20.0]
[1758528746790,0.72,223.14,223.06,20.0]
[1758528748107,0.72,223.13,223.02,20.0]
[1758528748313,0.72,223.12,223.0,20.0]
[1758528748516,0.72,223.11,223.0,20.0]
[1758528748696,31.2,223.15,223.0,20.0]
[1758528748907,0.72,223.14,222.98,20.0]
[1758528749107,0.72,223.13,222.98,20.0]
[1758528749409,0.72,223.12,222.98,20.0]
[1758528749615,0.72,223.11,222.98,20.0]
[1758528749819,0.72,223.1,222.98,20.0]
[1758528750022,31.2,223.06,222.98,20.0]
[1758528751393,2.34361714,223.17,222.98,20.0]
[1758528751596,36.9,223.16,223.03,20.0]
[1758528751808,0.72,223.15,223.03,20.0]
[1758528752016,0.72,223.14,223.03,20.0]
[1758528752318,31.92,223.13,223.03,20.0]
[1758528752518,31.2,223.13,223.03,20.0]
[1758528752722,0.72,223.12,223.03,20.0]
[1758528753320,0.72,223.11,223.01,20.0]
[1758528753495,0.72,223.1,223.01,20.0]
[1758528753693,0.72,223.09,223.01,20.0]
[1758528754508,36.86,223.11,223.01,20.0]
[1758528754721,31.2,223.08,223.01,20.0]
[1758528758015,31.92,223.08,223.01,20.0]
[1758528758203,2.34609085,223.15,223.03,20.0]
[1758528758204,0.72,223.13,223.03,20.0]
[1758528759011,0.72,223.12,223.03,20.0]
[1758528759210,0.72,223.11,223.03,20.0]
[1758528760713,0.72,223.11,223.05,20.0]
[1758528761027,67.26,223.14,223.05,20.0]
[1758528761229,31.2,223.1,223.05,20.0]
[1758528762616,2.34609085,223.15,223.05,20.0]
[1758528762617,31.2,223.14,223.05,20.0]
[1758528762810,31.92,223.14,223.05,20.0]
[1758528763010,26.95719793,223.24,223.02,85.8696632]
[1758528763011,2.34578056,223.2,223.08,20.0]
[1758528763211,2.34578056,223.2,223.06,5.2696632]
[1758528763212,0.72,223.18,223.1,20.0]
[1758528763417,0.72,223.18,223.08,20.0]
[1758528763418,31.2,223.17,223.08,20.0]
[1758528763629,0.72,223.16,223.08,20.0]
[1758528763833,0.72,223.15,223.03,20.0]
[1758528764020,2.34309526,223.2,223.01,20.0]
[1758528764021,31.2,223.11,223.01,20.0]
[1758528764223,0.72,223.1,223.01,20.0]
[1758528764431,0.72,223.09,223.03,20.0]
[1758528764628,0.72,223.08,223.01,20.0]
[1758528764939,0.72,223.08,222.96,36.06]
[1758528764940,0.72,223.08,223.03,20.0]
[1758528765313,31.2,223.11,223.01,20.0]
[1758528765530,0.72,223.1,223.01,20.0]
[1758528765829,0.72,223.09,223.03,20.0]
[1758528766019,31.2,223.11,223.03,20.0]
[1758528766332,31.92,223.11,223.03,20.0]
[1758528767627,31.2,223.17,223.03,20.0]
[1758528767810,31.2,223.13,223.05,20.0]
[1758528768137,0.72,223.14,223.05,20.0]
[1758528768430,36.02,223.16,223.05,20.0]
[1758528768431,31.92,223.13,223.05,20.0]
[1758528769018,0.72,223.16,223.05,20.0]
[1758528769336,31.2,223.12,223.05,20.0]
[1758528769510,31.2,223.12,223.05,100.6]
[1758528769706,31.2,223.12,223.08,20.0]
[1758528770018,31.2,223.13,223.08,20.0]
[1758528770417,4.43576067,223.19,223.1,20.0]
[1758528770613,40.41576067,223.19,223.1,20.0]
[1758528770828,31.2,223.16,223.1,20.0]
[1758528771935,0.72,223.18,223.1,20.0]
[1758528772117,31.2,223.16,223.1,20.0]
[1758528772618,31.2,223.16,223.12,20.0]
[1758528773021,0.1,223.19,223.12,20.0]
[1758528773532,0.82,223.19,223.12,20.0]
[1758528773833,4.41842784,223.19,223.12,20.0]
[1758528774023,0.72,223.18,223.12,20.0]
[1758528774424,3.69842784,223.19,223.12,20.0]
[1758528777420,0.1,223.19,223.12,20.0]
[1758528778833,0.1,223.19,223.14,20.0]
[1758528779033,0.1,223.19,223.14,100.6]
[1758528780450,0.1,223.19,223.17,20.0]
[1758528781941,0.1,223.19,223.18,3.31365657]
[1758528782738,0.82,223.19,223.13,20.0]
[1758528782948,0.82,223.19,223.14,3.31479455]
[1758528782949,0.72,223.18,223.14,3.31479455]
[1758528783138,0.72,223.17,223.11,20.0]
[1758528783338,0.1,223.19,223.14,20.0]
[1758528783743,0.72,223.18,223.12,20.0]
[1758528783939,31.2,223.16,223.07,20.0]
[1758528784128,0.72,223.15,223.1,20.0]
[1758528784743,31.92,223.18,223.1,20.0]
[1758528785059,31.92,223.18,223.14,20.0]
[1758528786542,0.72,223.17,223.14,20.0]
[1758528786745,31.2,223.18,223.14,20.0]
[1758528786950,31.92,223.18,223.14,20.0]
[1758528787430,0.1,223.19,223.16,20.0]
[1758528788242,0.1,223.19,223.17,3.33527521]
[1758528788440,0.1,223.19,223.16,20.0]
[1758528788638,0.1,223.19,223.17,3.33520564]
[1758528788849,0.1,223.19,223.16,20.0]
[1758528789037,0.1,223.19,223.18,20.0]
[1758528791747,0.1,223.19,223.18,23.33602287]
[1758528791953,0.1,223.19,223.18,27.8167111]
[1758528792139,0.1,223.19,223.18,23.33602287]
[1758528792653,0.1,223.19,223.18,33.08571532]
[1758528793446,0.1,223.19,223.18,37.57571532]
[1758528793648,0.1,223.19,223.18,73.45571532]
[1758528794352,0.1,223.19,223.18,50.7244044]
[1758528794548,0.1,223.19,223.18,36.48471195]
[1758528794846,0.1,223.19,223.18,72.36471195]
[1758528795952,0.1,223.19,223.18,84.43910868]
[1758528796756,0.1,223.19,223.18,111.42910868]
[1758528797337,0.1,223.19,223.18,99.31471195]
[1758528798056,0.1,223.19,223.18,103.79540018]
[1758528798438,0.1,223.19,223.18,99.31471195]
[1758528798754,0.1,223.19,223.18,99.29471195]
[1758528799150,0.1,223.19,223.18,33.14868908]
[1758528799344,0.1,223.19,223.18,68.94868908]
[1758528800735,0.76,223.19,223.18,20.0]
[1758528803359,0.76,223.19,223.18,55.8]
[1758528804246,0.76,223.19,223.18,20.0]
[1758528804665,0.76,223.19,223.16,20.0]
[1758528804849,0.66,223.18,223.15,35.76]
[1758528805054,0.66,223.17,223.16,20.0]
[1758528806257,0.66,223.17,223.14,20.0]
[1758528806461,0.66,223.16,223.14,55.76]
[1758528806759,0.66,223.16,223.06,7.6137085]
[1758528806760,0.66,223.15,223.12,20.0]
[1758528806960,0.66,223.14,223.12,20.0]
[1758528807143,0.66,223.13,223.12,20.0]
[1758528813068,0.66,223.13,223.12,33.59559401]
[1758528814072,0.66,223.13,223.11,13.59559401]
[1758528814256,0.66,223.12,223.11,20.0]
[1758528814755,0.66,223.12,223.07,13.59559401]
[1758528814756,0.66,223.12,223.09,13.59559401]
[1758528815074,0.66,223.11,223.09,49.29559401]
[1758528815289,0.1,223.19,223.1,13.59559401]
[1758528815654,0.1,223.19,223.09,13.59559401]
[1758528815853,0.66,223.18,223.09,13.59559401]
[1758528816061,0.66,223.17,223.09,13.59559401]
[1758528816261,0.66,223.16,223.09,20.0]
[1758528816467,0.66,223.15,223.09,20.0]
[1758528816668,0.66,223.14,222.96,0.72]
[1758528816872,31.2,223.11,222.98,19.28]
[1758528817059,34.84802422,223.1,222.97,13.59559401]
[1758528817264,3.64802422,223.09,222.94,35.94]
[1758528817478,0.66,223.08,222.94,16.66]
[1758528817674,0.66,223.07,222.95,19.28]
[1758528817880,0.66,223.06,222.93,19.28]
[1758528818071,31.2,223.03,222.95,19.28]
[1758528818259,0.66,223.02,222.95,19.28]
[1758528818459,0.66,223.01,222.95,19.28]
[1758528818679,0.66,223.0,222.95,19.28]
[1758528818892,0.66,223.0,222.94,13.59559401]
[1758528819192,0.66,222.99,222.93,13.59559401]
[1758528819658,0.66,222.99,222.95,13.59559401]
[1758528820055,0.66,222.98,222.95,13.59559401]
[1758528820271,0.66,222.97,222.95,13.59559401]
[1758528820685,0.66,222.97,222.94,13.59559401]
[1758528820855,0.66,222.97,222.93,19.28]
[1758528821059,0.66,222.97,222.96,19.28]
[1758528821959,0.66,222.97,222.93,19.28]
[1758528825083,0.66,222.96,222.93,19.28]
[1758528825267,0.66,222.95,222.92,13.59559401]
[1758528825578,0.66,222.94,222.91,99.88]
[1758528825780,0.66,222.93,222.9,13.59559401]
[1758528825967,0.66,222.92,222.9,13.59559401]
[1758528826673,0.66,222.95,222.9,13.59559401]
[1758528826871,0.66,222.94,222.9,13.59559401]
[1758528827186,31.2,222.92,222.9,13.59559401]
[1758528828980,31.2,222.92,222.9,14.31559401]
[1758528829184,31.2,222.92,222.9,13.59559401]
[1758528829989,31.86,222.92,222.9,13.59559401]
[1758528830582,31.2,222.92,222.9,13.59559401]
[1758528831377,4.33493449,222.99,222.91,0.72]
[1758528831584,4.33493449,222.99,222.95,19.28]
[1758528832491,0.66,222.98,222.95,19.28]
[1758528833081,31.2,222.97,222.95,19.28]
[1758528834897,31.2,222.97,222.94,13.59559401]
[1758528835076,31.2,222.97,222.95,19.28]
[1758528835406,0.66,222.96,222.93,19.28]
[1758528835582,0.66,222.95,222.93,19.28]
[1758528835769,0.66,222.94,222.92,80.6]
[1758528835970,0.66,222.93,222.92,80.6]
[1758528836191,0.66,222.95,222.92,80.6]
[1758528836496,0.66,222.94,222.92,80.6]
[1758528836698,0.66,222.93,222.92,80.6]
[1758528836904,0.66,222.96,222.92,80.6]
[1758528837198,0.66,222.95,222.92,80.6]
[1758528837381,0.66,222.94,222.92,80.6]
[1758528838874,0.66,222.96,222.92,80.6]
[1758528839075,66.78,222.97,222.92,80.6]
[1758528839297,0.66,222.95,222.92,80.6]
[1758528839603,0.66,222.94,222.92,80.6]
[1758528841298,0.66,222.94,222.91,19.28]
[1758528841702,0.66,222.93,222.89,19.28]
[1758528841996,0.66,222.92,222.89,19.28]
[1758528842496,0.66,222.94,222.89,19.28]
[1758528842801,0.66,222.93,222.89,19.28]
[1758528843178,0.66,222.92,222.89,19.28]
[1758528843396,0.66,222.92,222.84,19.28]
[1758528843397,0.66,222.91,222.84,19.28]
[1758528843698,31.2,222.87,222.78,19.28]
[1758528843879,0.66,222.86,222.76,19.28]
[1758528844084,31.2,222.82,222.76,19.28]
[1758528844286,31.2,222.82,222.78,19.28]
[1758528844491,31.2,222.84,222.81,19.28]
[1758528846499,31.2,222.94,222.81,19.28]
[1758528846690,0.66,222.84,222.81,19.28]
[1758528846888,31.2,222.82,222.77,32.87559401]
[1758528847100,31.86,222.81,222.79,19.28]
[1758528847604,0.66,222.81,222.79,19.28]
[1758528847805,31.2,222.8,222.79,19.28]
[1758528848788,31.2,222.8,222.77,19.28]
[1758528848993,31.2,222.8,222.79,19.28]
[1758528849413,31.86,222.8,222.77,19.28]
[1758528849590,0.66,222.79,222.77,19.28]
[1758528849998,0.66,222.79,222.75,19.28]
[1758528850186,0.66,222.79,222.77,19.28]
[1758528850584,31.2,222.81,222.8,19.28]
[1758528850887,35.56,222.84,222.8,19.28]
[1758528850888,31.2,222.83,222.8,19.94]
[1758528851093,36.22,222.86,222.8,19.94]
[1758528851094,36.22,222.86,222.82,19.28]
[1758528851298,0.66,222.86,222.82,19.28]
[1758528851496,31.2,222.84,222.82,19.28]
[1758528853212,0.67,222.83,222.8,19.28]
[1758528853425,0.67,222.82,222.8,19.28]
[1758528853930,31.2,222.84,222.8,19.28]
[1758528854098,0.67,222.82,222.8,19.28]
[1758528855026,0.67,222.81,222.8,19.28]
[1758528855411,31.87,222.84,222.8,19.28]
[1758528855604,0.67,222.83,222.8,19.28]
[1758528855803,0.67,222.82,222.8,19.28]
[1758528856012,0.67,222.81,222.8,19.28]
[1758528856418,31.2,222.84,222.8,19.28]
[1758528856614,0.67,222.83,222.8,19.28]
[1758528856915,31.2,222.84,222.8,19.28]
[1758528856916,0.67,222.82,222.8,19.28]
[1758528857421,31.2,222.79,222.78,19.28]
[1758528857632,31.2,222.79,222.76,19.28]
[1758528857816,31.87,222.79,222.76,19.28]
[1758528858316,0.67,222.78,222.74,19.28]
[1758528858515,0.67,222.77,222.72,32.87559401]
[1758528858822,31.2,222.74,222.72,19.28]
[1758528859002,31.87,222.74,222.72,19.28]
[1758528859201,31.2,222.73,222.72,19.28]
[1758528859607,31.2,222.72,222.68,19.28]
[1758528859811,31.2,222.72,222.71,19.28]
[1758528862435,31.87,222.72,222.69,19.28]
[1758528862634,31.2,222.72,222.69,19.28]
[1758528862810,3.36408648,222.71,222.67,19.28]
[1758528863010,31.2,222.68,222.67,19.28]
[1758528864213,33.89444943,222.68,222.67,19.28]
[1758528864617,31.2,222.71,222.7,19.28]
[1758528866525,33.89408648,222.71,222.7,19.28]
[1758528869632,13.5083414,222.77,222.7,19.28]
[1758528869935,31.2,222.73,222.72,19.28]
[1758528870228,31.2,222.73,222.72,19.93]
[1758528870632,35.52,222.78,222.74,19.28]
[1758528870831,31.2,222.75,222.74,19.28]
[1758528871216,31.2,222.76,222.74,19.28]
[1758528871917,33.89348547,222.76,222.74,19.28]
[1758528875123,0.71,222.79,222.76,19.28]
[1758528875443,2.95429728,222.79,222.76,19.28]
[1758528875649,31.2,222.77,222.76,19.28]
[1758528876147,2.95413688,222.81,222.76,19.28]
[1758528876348,2.95394061,222.83,222.8,19.28]
[1758528876637,0.71,222.83,222.8,19.28]
[1758528877330,31.2,222.83,222.8,19.28]
[1758528877654,7.8528238,222.85,222.8,19.28]
[1758528877817,12.1567489,222.85,222.8,19.28]
[1758528878017,0.71,222.84,222.8,19.28]
[1758528878244,2.95386303,222.83,222.8,19.28]
[1758528878540,0.71,222.82,222.8,19.28]
[1758528878711,2.24386303,222.83,222.8,19.28]
[1758528880539,2.95386303,222.83,222.8,19.28]
[1758528880735,31.2,222.8,222.76,19.28]
[1758528880942,3.68797526,222.79,222.76,19.28]
[1758528881142,0.71,222.78,222.76,19.28]
[1758528881433,2.97797526,222.79,222.76,19.28]
[1758528881635,31.2,222.8,222.76,19.93]
[1758528881822,31.2,222.8,222.78,19.28]
[1758528882925,33.44397048,222.82,222.8,19.28]
[1758528883125,2.98105434,222.81,222.8,19.93]
[1758528883432,2.98105434,222.82,222.8,19.93]
[1758528883630,2.98105434,222.82,222.8,19.28]
[1758528884024,2.98105434,222.82,222.81,0.65]
[1758528884225,2.24356097,222.86,222.83,19.28]
[1758528884441,31.2,222.85,222.83,19.28]
[1758528884625,2.98105434,222.84,222.83,19.28]
[1758528885026,2.24354435,222.87,222.83,19.93]
[1758528885426,2.24354435,222.87,222.86,19.28]
[1758528887647,3.69455708,222.88,222.86,19.28]
[1758528887648,2.98455708,222.88,222.86,19.28]
[1758528887849,31.2,222.89,222.86,19.28]
[1758528888149,2.98455708,222.88,222.86,19.28]
[1758528888326,31.2,222.9,222.89,19.28]
[1758528888527,34.18455708,222.9,222.89,19.28]
[1758528889526,2.98455708,222.9,222.89,19.28]
[1758528889727,2.98455708,222.92,222.89,19.93]
[1758528889949,2.98455708,222.92,222.91,19.28]
[1758528890156,31.2,222.95,222.91,19.28]
[1758528890450,2.98455708,222.94,222.91,19.28]
[1758528890752,3.69455708,222.94,222.91,19.28]
[1758528890928,0.71,222.93,222.91,19.28]
[1758528891339,0.71,222.92,222.91,19.28]
[1758528891549,31.2,222.89,222.85,19.28]
[1758528891750,3.69543343,222.88,222.85,19.28]
[1758528891943,0.71,222.87,222.85,19.28]
[1758528892156,0.71,222.86,222.85,19.28]
[1758528892360,2.98543343,222.88,222.85,19.28]
[1758528892847,3.69543343,222.88,222.85,19.28]
[1758528893150,0.71,222.87,222.85,19.28]
[1758528893359,0.71,222.86,222.81,19.28]
[1758528893548,7.85316819,222.84,222.81,19.28]
[1758528893747,0.71,222.83,222.81,19.28]
[1758528894950,10.83860162,222.84,222.73,4.48955382]
[1758528894951,31.2,222.81,222.75,19.28]
[1758528895145,0.71,222.8,222.75,19.28]
[1758528895446,31.2,222.81,222.77,19.28]
[1758528895651,2.2442659,222.79,222.77,19.28]
[1758528896171,31.2,222.76,222.74,19.28]
[1758528897732,31.2,222.81,222.77,19.28]
[1758528897944,31.2,222.78,222.77,19.28]
[1758528898130,31.2,222.78,222.75,19.99]
[1758528898330,31.2,222.79,222.77,19.28]
[1758528898664,31.2,222.78,222.77,19.28]
[1758528899830,33.44436663,222.78,222.77,19.28]
[1758528900267,8.57528322,222.78,222.75,19.28]
[1758528900458,8.57528322,222.78,222.71,19.28]
[1758528900459,0.72,222.77,222.71,19.28]
[1758528900637,0.72,222.76,222.75,19.28]
[1758528901162,8.57528322,222.78,222.75,19.28]